[Event "GM ZIA Smirity-A 2025"]
[Site "Dhaka"]
[Date "2025.02.20"]
[Round "7.12"]
[White "Chowdhury, Sohel"]
[Black "Masum, Hossain"]
[Result "1-0"]
[Annotator "RC"]
[ECO "C06"]
[WhiteElo "2018"]
[BlackElo "2011"]
[PlyCount "79"]
[EventDate "2025.02.17"]
[EventType "swiss"]
[EventCountry "BAN"]
[SourceTitle "playchess.com"]
[Source "ChessBase"]
[SourceQuality "1"]
[TimeControl "5400+30"]

1. e4 {[%emt 0:00:03]} e6 {[%emt 0:12:12]} 2. d4 {[%emt 0:00:26]} d5 {[%emt 0:00:02]} 3. Nd2 {[%emt 0:00:24]} Nf6 {[%emt 0:02:16]} 4. Bd3 {[%emt 0:00:07]} c5 {[%emt 0:00:17]} 5. e5 {[%emt 0:00:38]} Nfd7 {[%emt 0:00:22]} 6. c3 {[%emt 0:00:05]} Nc6 {[%emt 0:00:12]} 7. Ne2 {[%emt 0:00:59]} Qb6 {[%emt 0:01:53]} 8. Nf3 {[%emt 0:00:33]} Be7 {[%emt 0:03:05]} 9. O-O {[%emt 0:00:59]} O-O {[%emt 0:00:17]} 10. a3 {[%emt 0:01:02]} a5 {[%emt 0:00:15]} 11. Bc2 {[%emt 0:02:42]} f5 {[%emt 0:10:06]} 12. Nf4 {[%emt 0:04:52]} Nd8 {[%emt 0:04:16]} 13. h4 {[%emt 0:01:13]} Nf7 {[%emt 0:01:17]} 14. g3 {[%emt 0:02:15]} Rd8 {[%emt 0:01:54]} 15. Re1 {[%emt 0:00:39]} Nf8 {[%emt 0:00:02]} 16. Kg2 {[%emt 0:00:56]} g6 {[%emt 0:05:03]} 17. Rb1 {[%emt 0:00:30]} Bd7 {[%emt 0:00:40]} 18. Be3 {[%emt 0:00:35]} c4 {[%emt 0:01:34]} 19. Rh1 {[%emt 0:01:22]} Qc7 {[%emt 0:00:01]} 20. a4 {[%emt 0:01:39]} Rdb8 {[%emt 0:00:20]} 21. Qd2 {[%emt 0:03:12]} b5 {[%emt 0:00:07]} 22. axb5 {[%emt 0:00:48]} a4 {[%emt 0:00:02]} 23. Ra1 {[%emt 0:00:49]} Bxb5 {[%emt 0:00:34]} 24. Rhb1 {[%emt 0:01:12]} Bc6 {[%emt 0:00:18]} 25. Qd1 {[%emt 0:02:06]} Rb3 {[%emt 0:01:43]} 26. Bxb3 {[%emt 0:00:42]} cxb3 {[%emt 0:00:02]} 27. Nd3 {[%emt 0:02:15]} Bb5 {[%emt 0:00:01]} 28. Nc1 {[%emt 1:11:27]} Rc8 {[%emt 0:00:25]} 29. Nd3 {[%emt 0:00:00]} Nd7 {[%emt 0:00:12]} 30. Nf4 {[%emt 0:00:00]} Qc6 {[%emt 0:00:28]} 31. Kh3 {[%emt 0:00:00]} Nb6 {[%emt 0:01:59]} 32. Nd2 {[%emt 0:00:00]} Kg7 {[%emt 0:11:00]} 33. Nxb3 {[%emt 0:00:00]} axb3 {[%emt 0:00:03]} 34. Qxb3 {[%emt 0:00:00]} Ba4 {[%emt 0:03:46]} 35. Qa2 {[%emt 0:00:00]} Bc2 {[%emt 0:01:02]} 36. Qa7 {[%emt 0:00:00]} Bd8 {[%emt 0:00:41]} 37. Qa6 {[%emt 0:00:00]} Bxb1 {[%emt 0:00:22]} 38. Rxb1 {[%emt 0:00:00]} Qc7 {[%emt 0:00:36]} 39. Nxe6+ {[%emt 0:00:00]} Kg8 {[%emt 0:00:05]} 40. Nxc7 {[%emt 0:00:00]} 1-0

[Event "GM ZIA Smirity-A 2025"]
[Site "Dhaka"]
[Date "2025.02.20"]
[Round "7.13"]
[White "Tahmidul, Haque"]
[Black "Safayat, Kibria Azaan"]
[Result "1/2-1/2"]
[Annotator "NA RC"]
[ECO "E04"]
[WhiteElo "2016"]
[BlackElo "1850"]
[PlyCount "115"]
[EventDate "2025.02.17"]
[EventType "swiss"]
[EventCountry "BAN"]
[SourceTitle "playchess.com"]
[Source "ChessBase"]
[SourceQuality "1"]
[TimeControl "5400+30"]

1. Nf3 {[%emt 0:06:38]} Nf6 {[%emt 0:00:15]} 2. d4 {[%emt 0:00:06]} e6 {[%emt 0:00:05]} 3. c4 {[%emt 0:00:19]} d5 {[%emt 0:00:09]} 4. g3 {[%emt 0:00:07]} dxc4 {[%emt 0:00:32]} 5. Bg2 {[%emt 0:00:12]} c5 {[%emt 0:01:12]} 6. O-O {[%emt 0:00:30]} Nc6 {[%emt 0:00:46]} 7. Qa4 {[%emt 0:00:39]} Bd7 {[%emt 0:03:57]} 8. dxc5 {[%emt 0:02:44]} Bxc5 {[%emt 0:02:01]} 9. Qxc4 {[%emt 0:00:21]} Qb6 {[%emt 0:00:34]} 10. Nc3 {[%emt 0:00:37]} Na5 {[%emt 0:05:03] E04: Open Catalan: 5 Nf3.} 11. Qh4 {[%emt 0:03:12]} O-O {[%emt 0:00:55]} 12. e4 {[%emt 0:08:27]} Rfe8 {[%emt 0:08:32]} 13. e5 {[%emt 0:10:10]} Nd5 {[%emt 0:00:47]} 14. Ne4 {[%emt 0:01:04]} Be7 {[%emt 0:02:39]} 15. Bg5 {[%emt 0:01:32]} Bxg5 {[%emt 0:04:20]} 16. Nfxg5 {[%emt 0:04:35]} h6 {[%emt 0:00:44]} 17. Qh5 {[%emt 0:08:12]} Rf8 {[%emt 0:02:08]} 18. b3 {[%emt 0:21:13]} Qd4 {[%emt 0:05:55]} 19. Nh3 {[%emt 0:00:52]} Nc6 {[%emt 0:05:24]} 20. Nd6 {[%emt 0:04:47]} Qxe5 {[%emt 0:03:26]} 21. Qxe5 {[%emt 0:00:11]} Nxe5 {[%emt 0:00:05]} 22. Nxb7 {[%emt 0:01:20]} Bc6 {[%emt 0:02:31]} 23. Na5 {[%emt 0:00:34]} Rac8 {[%emt 0:01:09]} 24. Rfe1 {[%emt 0:00:47]} Nd7 {[%emt 0:03:51]} 25. Nxc6 {[%emt 0:05:16]} Rxc6 {[%emt 0:00:25]} 26. Nf4 {[%emt 0:01:01]} N7f6 {[%emt 0:00:43]} 27. Rad1 {[%emt 0:03:06]} Rd8 {[%emt 0:00:36]} 28. Nxd5 {[%emt 0:02:48]} exd5 {[%emt 0:01:42]} 29. Re7 {[%emt 0:00:03]} a6 {[%emt 0:04:17]} 30. Ra7 {[%emt 0:00:10]} Rdd6 {[%emt 0:01:34]} 31. Bf1 {[%emt 0:00:58]} g6 {[%emt 0:02:18]} 32. Rd4 {[%emt 0:00:14]} Ne4 {[%emt 0:01:30]} 33. Ra4 {[%emt 0:05:47] [#]} Nc3 $14 {[%emt 0:01:23]} (33... Rc1 $1 $17 34. Kg2 (34. R4xa6 $2 {too greedy.} Rxa6 35. Rxa6 Nd2 $19) 34... Rf6) 34. R4xa6 {[%emt 0:00:38]} Rxa6 {[%emt 0:00:27]} 35. Rxa6 {[%emt 0:00:38]} Rxa6 {[%emt 0:00:11]} 36. Bxa6 {[%emt 0:00:02]} Nxa2 {[%emt 0:00:10]} 37. Kf1 {[%emt 0:00:26]} Kf8 {[%emt 0:00:19]} 38. Bb7 {[%emt 0:00:30]} Nb4 {[%emt 0:36:55]} 39. Ke2 {[%emt 0:00:12]} Ke7 {[%emt 0:00:00]} 40. Ke3 {[%emt 0:01:17]} Kd6 {[%emt 0:00:00]} 41. Kd4 {[%emt 0:00:03]} Nc2+ {[%emt 0:00:00]} 42. Kc3 {[%emt 0:00:12]} Ne1 {[%emt 0:00:00]} 43. h4 {[%emt 0:00:26]} g5 {[%emt 0:00:00]} 44. hxg5 {[%emt 0:01:12]} hxg5 {[%emt 0:00:00]} 45. Ba6 {[%emt 0:00:08]} Nf3 {[%emt 0:00:00]} 46. b4 {[%emt 0:00:31]} Ne5 {[%emt 0:00:00]} 47. Bf1 {[%emt 0:01:03]} Ng4 {[%emt 0:00:00]} 48. Kd4 {[%emt 0:08:40]} Nxf2 {[%emt 0:00:00]} 49. Bg2 {[%emt 0:00:00]} f5 {[%emt 0:00:00]} 50. Bxd5 {[%emt 0:00:00]} f4 {[%emt 0:00:00]} 51. gxf4 {[%emt 0:00:00]} gxf4 {[%emt 0:00:00]} 52. b5 {[%emt 0:00:00]} Kc7 {[%emt 0:00:00]} 53. Bf3 {[%emt 0:00:00]} Kb6 {[%emt 0:00:00]} 54. Be2 {[%emt 0:00:00]} Nd1 {[%emt 0:00:00]} 55. Bxd1 {[%emt 0:00:00]} Kxb5 {[%emt 0:08:30]} 56. Ba4+ {[%emt 0:00:00]} Kxa4 {[%emt 0:00:00]} 57. Ke4 {[%emt 0:00:00]} Ka5 {[%emt 0:00:00]} 58. Kxf4 {[%emt 0:00:00]} 1/2-1/2

[Event "GM ZIA Smirity-A 2025"]
[Site "Dhaka"]
[Date "2025.02.20"]
[Round "7.14"]
[White "Islam, M.M. Zahirul"]
[Black "Neelava, Choudhury"]
[Result "1-0"]
[Annotator "RC"]
[ECO "D02"]
[WhiteElo "1912"]
[BlackElo "1784"]
[PlyCount "97"]
[EventDate "2025.02.17"]
[EventType "swiss"]
[EventCountry "BAN"]
[SourceTitle "playchess.com"]
[Source "ChessBase"]
[SourceQuality "1"]
[TimeControl "5400+30"]

1. d4 {[%emt 0:00:04]} d5 {[%emt 0:00:16]} 2. Bf4 {[%emt 0:00:10]} Nf6 {[%emt 0:00:15]} 3. e3 {[%emt 0:00:12]} Bg4 {[%emt 0:00:23]} 4. Nf3 {[%emt 0:00:25]} e6 {[%emt 0:00:13]} 5. c4 {[%emt 0:00:12]} Bb4+ {[%emt 0:00:53]} 6. Nc3 {[%emt 0:00:24]} dxc4 {[%emt 0:00:41]} 7. Qa4+ {[%emt 0:01:25]} Nc6 {[%emt 0:00:38]} 8. Ne5 {[%emt 0:00:21]} Bxc3+ {[%emt 0:02:18]} 9. bxc3 {[%emt 0:00:04]} O-O {[%emt 0:02:43]} 10. Nxc6 {[%emt 0:00:52]} bxc6 {[%emt 0:00:06]} 11. Qxc6 {[%emt 0:00:28]} Nd5 {[%emt 0:01:36]} 12. Bxc4 {[%emt 0:04:41]} Nxf4 {[%emt 0:05:56]} 13. exf4 {[%emt 0:00:03]} Qf6 {[%emt 0:01:07]} 14. Qe4 {[%emt 0:00:06]} c5 {[%emt 0:01:21]} 15. O-O {[%emt 0:00:52]} cxd4 {[%emt 0:02:11]} 16. cxd4 {[%emt 0:00:03]} Rad8 {[%emt 0:01:01]} 17. d5 {[%emt 0:01:45]} exd5 {[%emt 0:00:23]} 18. Bxd5 {[%emt 0:00:22]} Rfe8 {[%emt 0:00:18]} 19. Qa4 {[%emt 0:06:03]} Re7 {[%emt 0:03:48]} 20. Rfe1 {[%emt 0:06:08]} g6 {[%emt 0:03:19]} 21. Bb3 {[%emt 0:03:16]} Rd4 {[%emt 0:05:24]} 22. Qa3 {[%emt 0:01:02]} Rde4 {[%emt 0:00:12]} 23. Qa5 {[%emt 0:01:53]} Rxe1+ {[%emt 0:02:08]} 24. Rxe1 {[%emt 0:00:06]} Rxe1+ {[%emt 0:00:07]} 25. Qxe1 {[%emt 0:00:02]} Qxf4 {[%emt 0:02:31]} 26. h3 {[%emt 0:01:31]} Bd7 {[%emt 0:00:27]} 27. Qc3 {[%emt 0:04:33]} a6 {[%emt 0:03:27]} 28. Bc4 {[%emt 0:02:13]} Bb5 {[%emt 0:02:18]} 29. Bd5 {[%emt 0:01:36]} Qf5 {[%emt 0:03:53]} 30. Qd4 {[%emt 0:01:50]} Qd3 {[%emt 0:02:18]} 31. Qxd3 {[%emt 0:02:14]} Bxd3 {[%emt 0:00:06]} 32. f4 {[%emt 0:00:06]} Kg7 {[%emt 0:01:46]} 33. Kf2 {[%emt 0:01:31]} f5 {[%emt 0:00:58]} 34. Ke3 {[%emt 0:00:03]} Bb5 {[%emt 0:00:06]} 35. Kd4 {[%emt 0:05:05]} Kf6 {[%emt 0:00:37]} 36. h4 {[%emt 0:01:01]} h6 {[%emt 0:00:05]} 37. Kc5 {[%emt 0:00:53]} g5 {[%emt 0:00:06]} 38. hxg5+ {[%emt 0:03:29]} hxg5 {[%emt 0:00:06]} 39. g3 {[%emt 0:00:09]} gxf4 {[%emt 0:00:38]} 40. gxf4 {[%emt 0:00:02]} Be2 {[%emt 0:00:56]} 41. Kd4 {[%emt 0:06:11]} Bf1 {[%emt 0:03:33]} 42. a4 {[%emt 0:01:42]} Kg6 {[%emt 0:01:14]} 43. a5 {[%emt 0:00:25]} Be2 {[%emt 0:01:55]} 44. Be6 {[%emt 0:01:23]} Kf6 {[%emt 0:00:15]} 45. Bc4 {[%emt 0:03:58]} Bf3 {[%emt 0:00:47]} 46. Bxa6 {[%emt 0:00:23]} Ke7 {[%emt 0:00:21]} 47. Ke5 {[%emt 0:00:08]} Be4 {[%emt 0:00:08]} 48. Bc8 {[%emt 0:00:27]} Kf8 {[%emt 0:00:56]} 49. a6 {[%emt 0:00:13]} 1-0

[Event "GM ZIA Smirity-A 2025"]
[Site "Dhaka"]
[Date "2025.02.20"]
[Round "7.15"]
[White "Abrar, Reazul Ahnaf Mohamma"]
[Black "Aiyan, Rahman"]
[Result "0-1"]
[Annotator "NA RC"]
[ECO "B01"]
[WhiteElo "1771"]
[BlackElo "1827"]
[PlyCount "64"]
[EventDate "2025.02.17"]
[EventType "swiss"]
[EventCountry "BAN"]
[SourceTitle "playchess.com"]
[Source "ChessBase"]
[SourceQuality "1"]
[TimeControl "5400+30"]

1. e4 {[%emt 0:00:08]} d5 {[%emt 0:00:21]} 2. exd5 {[%emt 0:00:08]} Qxd5 {[%emt 0:00:02]} 3. Nc3 {[%emt 0:00:22]} Qa5 {[%emt 0:00:05]} 4. Nf3 {[%emt 0:00:30]} Nf6 {[%emt 0:00:05]} 5. d4 {[%emt 0:00:16]} c6 {[%emt 0:00:02]} 6. Bc4 {[%emt 0:00:18]} Bf5 {[%emt 0:00:03]} 7. O-O {[%emt 0:01:13]} e6 {[%emt 0:02:08]} 8. Bf4 {[%emt 0:01:00]} Bb4 {[%emt 0:01:43]} 9. Qd2 {[%emt 0:02:17]} Ne4 {[%emt 0:01:45]} 10. Qe3 {[%emt 0:04:13]} Nxc3 {[%emt 0:00:37]} 11. bxc3 {[%emt 0:00:06]} Bxc3 {[%emt 0:00:29]} 12. Rab1 {[%emt 0:00:50]} b5 {[%emt 0:02:04]} 13. Bb3 {[%emt 0:01:54]} Bb4 {[%emt 0:04:08]} 14. Be5 {[%emt 0:04:16]} O-O {[%emt 0:24:36]} 15. g4 {[%emt 0:17:55]} Bg6 {[%emt 0:04:46]} 16. h4 {[%emt 0:00:53]} f6 {[%emt 0:05:52]} 17. Bxb8 {[%emt 0:05:41]} Raxb8 {[%emt 0:00:06]} 18. Qxe6+ {[%emt 0:00:57]} Kh8 {[%emt 0:01:35]} 19. Qe3 {[%emt 0:08:44]} Rbe8 {[%emt 0:09:15]} 20. Qf4 {[%emt 0:00:42]} Qd8 {[%emt 0:01:51]} 21. Qg3 {[%emt 0:04:12]} Bd6 {[%emt 0:16:44]} 22. Qg2 {[%emt 0:06:07]} Re4 {[%emt 0:03:37]} 23. Rfe1 {[%emt 0:07:23]} Rf4 {[%emt 0:00:43]} 24. Qh3 {[%emt 0:08:16]} h5 {[%emt 0:02:33]} 25. gxh5 {[%emt 0:11:10]} Bf5 {[%emt 0:00:33]} 26. Qh1 {[%emt 0:00:44]} Be4 {[%emt 0:00:15]} 27. Re3 {[%emt 0:01:04]} Qd7 {[%emt 0:00:46]} 28. Kf1 {[%emt 0:01:04]} Qg4 {[%emt 0:02:02]} 29. Ke2 {[%emt 0:00:08]} Rxf3 {[%emt 0:00:37]} 30. Rg1 {[%emt 0:02:26]} Rxe3+ {[%emt 0:00:06]} 31. Kxe3 {[%emt 0:00:05]} Qf4+ {[%emt 0:00:04]} 32. Ke2 {[%emt 0:00:08]} Bxh1 {[%emt 0:00:05]} 0-1

[Event "GM ZIA Smirity-A 2025"]
[Site "Dhaka"]
[Date "2025.02.21"]
[Round "8.1"]
[White "Mohammad, Javed"]
[Black "Md Minhaz Uddin"]
[Result "1/2-1/2"]
[Annotator "RC"]
[ECO "C42"]
[WhiteElo "2139"]
[BlackElo "2230"]
[PlyCount "37"]
[EventDate "2025.02.17"]
[EventType "swiss"]
[EventCountry "BAN"]
[SourceTitle "playchess.com"]
[Source "ChessBase"]
[SourceQuality "1"]
[TimeControl "5400+30"]

1. e4 {[%emt 0:00:38]} e5 {[%emt 0:00:02]} 2. Nf3 {[%emt 0:00:13]} Nf6 {[%emt 0:00:02]} 3. Nxe5 {[%emt 0:00:23]} d6 {[%emt 0:00:02]} 4. Nf3 {[%emt 0:00:13]} Nxe4 {[%emt 0:00:02]} 5. d4 {[%emt 0:00:21]} d5 {[%emt 0:00:04]} 6. Bd3 {[%emt 0:00:18]} Nc6 {[%emt 0:00:03]} 7. O-O {[%emt 0:00:31]} Be7 {[%emt 0:00:02]} 8. Re1 {[%emt 0:00:51]} Bg4 {[%emt 0:00:32]} 9. c4 {[%emt 0:00:19]} Nf6 {[%emt 0:00:07]} 10. cxd5 {[%emt 0:00:18]} Qxd5 {[%emt 0:01:44]} 11. Nc3 {[%emt 0:00:26]} Bxf3 {[%emt 0:12:11]} 12. Nxd5 {[%emt 0:00:45]} Bxd1 {[%emt 0:00:03]} 13. Nxf6+ {[%emt 0:00:35]} gxf6 {[%emt 0:00:18]} 14. Rxd1 {[%emt 0:00:08]} O-O-O {[%emt 0:00:14]} 15. Be3 {[%emt 0:01:54]} Kb8 {[%emt 0:01:35]} 16. Be4 {[%emt 0:00:37]} Nb4 {[%emt 0:01:07]} 17. d5 {[%emt 0:05:17]} f5 {[%emt 0:01:06]} 18. Bxf5 {[%emt 0:07:40]} Nxd5 {[%emt 1:20:16]} 19. Bd4 {[%emt 0:00:25]} 1/2-1/2

[Event "GM ZIA Smirity-A 2025"]
[Site "Dhaka"]
[Date "2025.02.21"]
[Round "8.2"]
[White "Islam, Khandaker Aminul"]
[Black "Zia, Tahsin Tajwar"]
[Result "0-1"]
[Annotator "RC"]
[ECO "E06"]
[WhiteElo "2169"]
[BlackElo "2323"]
[PlyCount "132"]
[EventDate "2025.02.17"]
[EventType "swiss"]
[EventCountry "BAN"]
[SourceTitle "playchess.com"]
[Source "ChessBase"]
[SourceQuality "1"]
[TimeControl "5400+30"]

1. d4 {[%emt 0:00:10]} d5 {[%emt 0:00:23]} 2. c4 {[%emt 0:00:28]} e6 {[%emt 0:00:05]} 3. Nf3 {[%emt 0:00:10]} Nf6 {[%emt 0:00:17]} 4. g3 {[%emt 0:00:10]} Be7 {[%emt 0:00:11]} 5. Bg2 {[%emt 0:00:10]} Ne4 {[%emt 0:00:10]} 6. O-O {[%emt 0:00:25]} f5 {[%emt 0:00:07]} 7. Qc2 {[%emt 0:00:41]} c6 {[%emt 0:09:40]} 8. b3 {[%emt 0:02:06]} Nd7 {[%emt 0:04:13]} 9. Ba3 {[%emt 0:02:44]} Bf6 {[%emt 0:00:22]} 10. Nc3 {[%emt 0:03:29]} Qa5 {[%emt 0:04:33]} 11. Bb2 {[%emt 0:00:41]} O-O {[%emt 0:00:12]} 12. e3 {[%emt 0:00:23]} b5 {[%emt 0:14:52]} 13. cxb5 {[%emt 0:12:25]} cxb5 {[%emt 0:00:25]} 14. Ne2 {[%emt 0:00:18]} Bb7 {[%emt 0:02:38]} 15. Nf4 {[%emt 0:00:54]} Rac8 {[%emt 0:02:30]} 16. Qe2 {[%emt 0:02:27]} b4 {[%emt 0:02:59]} 17. Rfc1 {[%emt 0:01:05]} Ba6 {[%emt 0:13:23]} 18. Qe1 {[%emt 0:02:44]} Rxc1 {[%emt 0:01:00]} 19. Bxc1 {[%emt 0:14:36]} g5 {[%emt 0:06:16]} 20. Nxe6 {[%emt 0:07:21]} Re8 {[%emt 0:00:39]} 21. Nexg5 {[%emt 0:02:29]} Bxg5 {[%emt 0:05:28]} 22. Nxg5 {[%emt 0:00:16]} Nxg5 {[%emt 0:00:02]} 23. Bd2 {[%emt 0:00:36]} Rc8 {[%emt 0:04:22]} 24. Bxb4 {[%emt 0:05:26]} Qb5 {[%emt 0:00:25]} 25. a4 {[%emt 0:05:51]} Qc6 {[%emt 0:03:26]} 26. Ba3 {[%emt 0:05:42]} Ne4 {[%emt 0:00:50]} 27. Rc1 {[%emt 0:00:29]} Qb7 {[%emt 0:02:35]} 28. b4 {[%emt 0:13:30]} Rxc1 {[%emt 0:06:36]} 29. Qxc1 {[%emt 0:00:09]} Qc8 {[%emt 0:00:07]} 30. b5 {[%emt 0:01:12]} Qxc1+ {[%emt 0:00:35]} 31. Bxc1 {[%emt 0:00:02]} Bc8 {[%emt 0:02:13]} 32. a5 {[%emt 0:00:27]} Kf7 {[%emt 0:01:06]} 33. Bf1 {[%emt 0:01:34]} Ke6 {[%emt 0:02:29]} 34. Ba3 {[%emt 0:05:37]} Nd2 {[%emt 0:02:23]} 35. Bd3 {[%emt 0:01:33]} Nc4 {[%emt 0:01:16]} 36. Bb4 {[%emt 0:00:02]} Nf6 {[%emt 0:02:31]} 37. Bc5 {[%emt 0:03:24]} Bd7 {[%emt 0:01:21]} 38. Bxa7 {[%emt 0:00:27]} Bxb5 {[%emt 0:00:01]} 39. Bc5 {[%emt 0:01:11]} Nd7 {[%emt 0:03:06]} 40. f3 {[%emt 0:03:36]} Nxc5 {[%emt 0:03:29]} 41. dxc5 {[%emt 0:00:02]} Bc6 {[%emt 0:00:13]} 42. e4 {[%emt 0:01:16]} Nxa5 {[%emt 0:00:26]} 43. exd5+ {[%emt 0:00:47]} Bxd5 {[%emt 0:00:09]} 44. Kf2 {[%emt 0:02:08]} Nb3 {[%emt 0:00:21]} 45. g4 {[%emt 0:00:45]} f4 {[%emt 0:00:49]} 46. Bxh7 {[%emt 0:00:03]} Ke5 {[%emt 0:00:55]} 47. Bc2 {[%emt 0:00:34]} Nxc5 {[%emt 0:00:20]} 48. h4 {[%emt 0:00:02]} Ne6 {[%emt 0:00:12]} 49. Bd1 {[%emt 0:00:47]} Nd4 {[%emt 0:00:19]} 50. Be2 {[%emt 0:00:35]} Kf6 {[%emt 0:00:39]} 51. Bd1 {[%emt 0:00:16]} Ke5 {[%emt 0:00:06]} 52. Kg2 {[%emt 0:00:39]} Bc6 {[%emt 0:00:49]} 53. Kf2 {[%emt 0:00:04]} Kd6 {[%emt 0:00:33]} 54. Kg2 {[%emt 0:00:17]} Be8 {[%emt 0:00:52]} 55. Kf2 {[%emt 0:00:31]} Kd5 {[%emt 0:00:09]} 56. Be2 {[%emt 0:01:01]} Nxe2 {[%emt 0:00:23]} 57. Kxe2 {[%emt 0:00:02]} Kd4 {[%emt 0:00:00]} 58. Kd2 {[%emt 0:01:02]} Bf7 {[%emt 0:00:17]} 59. Ke2 {[%emt 0:00:31]} Kc3 {[%emt 0:00:06]} 60. Kf2 {[%emt 0:00:13]} Kd2 {[%emt 0:00:09]} 61. h5 {[%emt 0:00:19]} Kd3 {[%emt 0:00:18]} 62. Kg2 {[%emt 0:00:14]} Ke3 {[%emt 0:00:05]} 63. Kh3 {[%emt 0:00:15]} Kxf3 {[%emt 0:00:08]} 64. Kh4 {[%emt 0:00:09]} Ke4 {[%emt 0:01:02]} 65. g5 {[%emt 0:00:06]} f3 {[%emt 0:00:16]} 66. g6 {[%emt 0:00:02]} f2 {[%emt 0:00:09]} 0-1

[Event "GM ZIA Smirity-A 2025"]
[Site "Dhaka"]
[Date "2025.02.21"]
[Round "8.4"]
[White "Abu Sufian, Shakil"]
[Black "Md Nasir Uddin"]
[Result "1-0"]
[Annotator "RC"]
[ECO "B40"]
[WhiteElo "2224"]
[BlackElo "2010"]
[PlyCount "79"]
[EventDate "2025.02.17"]
[EventType "swiss"]
[EventCountry "BAN"]
[SourceTitle "playchess.com"]
[Source "ChessBase"]
[SourceQuality "1"]
[TimeControl "5400+30"]

1. e4 {[%emt 0:00:12]} e6 {[%emt 0:00:08]} 2. d4 {[%emt 0:00:08]} c5 {[%emt 0:00:09]} 3. Nf3 {[%emt 0:00:24]} a6 {[%emt 0:00:21]} 4. d5 {[%emt 0:05:46]} d6 {[%emt 0:00:10]} 5. dxe6 {[%emt 0:08:17]} Bxe6 {[%emt 0:00:03]} 6. Ng5 {[%emt 0:03:38]} Qd7 {[%emt 0:01:39]} 7. Nxe6 {[%emt 0:04:06]} Qxe6 {[%emt 0:01:18]} 8. Nc3 {[%emt 0:00:10]} Nf6 {[%emt 0:00:31]} 9. Be2 {[%emt 0:00:33]} Nc6 {[%emt 0:00:13]} 10. Nd5 {[%emt 0:06:10]} Rc8 {[%emt 0:00:25]} 11. Nxf6+ {[%emt 0:00:54]} Qxf6 {[%emt 0:00:25]} 12. O-O {[%emt 0:00:51]} Be7 {[%emt 0:00:14]} 13. c3 {[%emt 0:00:42]} O-O {[%emt 0:00:58]} 14. f4 {[%emt 0:00:24]} Rcd8 {[%emt 0:01:06]} 15. Bf3 {[%emt 0:00:49]} h6 {[%emt 0:02:38]} 16. Be3 {[%emt 0:06:43]} Qe6 {[%emt 0:00:21]} 17. Bf2 {[%emt 0:02:13]} Qc4 {[%emt 0:01:29]} 18. Qd2 {[%emt 0:11:42]} Bf6 {[%emt 0:00:42]} 19. Rfd1 {[%emt 0:02:23]} Rfe8 {[%emt 0:00:57]} 20. Qd5 {[%emt 0:02:21]} Qxd5 {[%emt 0:08:22]} 21. Rxd5 {[%emt 0:00:05]} Ne7 {[%emt 0:00:05]} 22. Rd2 {[%emt 0:00:38]} Ng6 {[%emt 0:00:14]} 23. g3 {[%emt 0:00:19]} b6 {[%emt 0:01:59]} 24. Rad1 {[%emt 0:05:43]} Be7 {[%emt 0:01:35]} 25. Be2 {[%emt 0:01:45]} b5 {[%emt 0:03:45]} 26. Kg2 {[%emt 0:04:54]} Rb8 {[%emt 0:00:46]} 27. Kf3 {[%emt 0:01:13]} Nf8 {[%emt 0:02:55]} 28. h4 {[%emt 0:00:47]} g6 {[%emt 0:00:39]} 29. g4 {[%emt 0:01:09]} Kg7 {[%emt 0:02:09]} 30. Bg3 {[%emt 0:00:56]} Rbc8 {[%emt 0:04:57]} 31. a4 {[%emt 0:02:08]} c4 {[%emt 0:02:02]} 32. axb5 {[%emt 0:00:09]} axb5 {[%emt 0:00:03]} 33. Rd5 {[%emt 0:02:01]} Rc5 {[%emt 0:01:05]} 34. Rxc5 {[%emt 0:01:49]} dxc5 {[%emt 0:00:02]} 35. f5 {[%emt 0:00:22]} Rd8 {[%emt 0:01:02]} 36. e5 {[%emt 0:01:53]} gxf5 {[%emt 0:00:33]} 37. gxf5 {[%emt 0:00:07]} f6 {[%emt 0:03:30]} 38. Rxd8 {[%emt 0:00:14]} Bxd8 {[%emt 0:00:21]} 39. e6 {[%emt 0:00:05]} Be7 {[%emt 0:00:18]} 40. Ke4 {[%emt 0:00:09]} 1-0